bitfinex/quotes_SOLUSD_20250728
["timestamp","ask_amount","ask_price","bid_price","bid_amount"]
[1753708754544,75.00286916,191.7,191.69,0.2]
[1753708755132,71.54579977,191.7,191.69,0.2]
[1753708755334,75.00253003,191.7,191.69,0.2]
[1753708756428,82.15589805,191.7,191.69,0.2]
[1753708756629,1.93042314,191.69,191.68,0.06]
[1753708756931,22.85598512,191.69,191.68,0.06]
[1753708757636,28.07274134,191.69,191.68,0.06]
[1753708758631,38.54890217,191.69,191.68,0.06]
[1753708759854,38.54777279,191.69,191.68,0.06]
[1753708760030,38.83209593,191.69,191.68,0.06]
[1753708760230,21.76308882,191.69,191.68,0.06]
[1753708760453,52.2002326,191.69,191.68,0.06]
[1753708760730,74.88167279,191.69,191.68,0.06]
[1753708760931,75.16599593,191.69,191.68,0.06]
[1753708761155,71.27040909,191.69,191.68,0.06]
[1753708761351,75.16070517,191.69,191.68,0.06]
[1753708762085,75.16070517,191.69,191.65,0.06]
[1753708762086,42.78468397,191.66,191.65,0.06]
[1753708762234,16.78468397,191.65,191.64,0.06]
[1753708762435,35.51727758,191.65,191.64,0.06]
[1753708763253,31.96394895,191.65,191.63,0.06]
[1753708763458,62.75058093,191.64,191.63,0.06]
[1753708763688,67.96869823,191.64,191.63,0.06]
[1753708763889,74.83774311,191.64,191.63,0.06]
[1753708764184,17.06900711,191.63,191.59,0.2]
[1753708764350,52.43926498,191.62,191.59,0.2]
[1753708764556,66.44834807,191.62,191.59,0.2]
[1753708764868,69.66676902,191.62,191.59,0.2]
[1753708765245,13.97776191,191.62,191.59,0.2]
[1753708765481,5.21730056,191.67,191.61,10.40746583]
[1753708765667,51.87136076,191.66,191.61,10.40746583]
[1753708765956,3.88389493,191.65,191.62,0.26]
[1753708766184,3.88389493,191.65,191.63,0.26]
[1753708766369,37.92,191.64,191.63,10.34746583]
[1753708767179,3.88316908,191.64,191.63,10.34746583]
[1753708767385,37.92,191.66,191.63,10.34746583]
[1753708767752,37.92,191.66,191.61,0.06]
[1753708767753,37.92,191.66,191.62,10.08746583]
[1753708768171,3.88312803,191.65,191.61,0.06]
[1753708768366,37.94,191.64,191.61,10.14746583]
[1753708768659,37.94,191.64,191.61,0.06]
[1753708768876,3.88355282,191.63,191.61,0.06]
[1753708769081,37.94,191.62,191.61,0.06]
[1753708769259,41.82355282,191.62,191.61,0.06]
[1753708770080,74.59436455,191.62,191.61,0.06]
[1753708770285,74.87868769,191.62,191.61,0.06]
[1753708771077,84.96615352,191.62,191.61,0.06]
[1753708771656,74.87868769,191.62,191.61,0.06]
[1753708774773,92.2197906,191.62,191.61,0.06]
[1753708775075,74.87868769,191.62,191.61,0.06]
[1753708776077,84.96615352,191.62,191.61,0.06]
[1753708776284,88.41751234,191.62,191.61,0.06]
[1753708777059,52.8721498,191.6,191.59,0.2]
[1753708777260,101.89927828,191.6,191.59,0.2]
[1753708777480,102.58927828,191.6,191.59,0.2]
[1753708778888,124.99279656,191.6,191.59,0.2]
[1753708779690,0.28432314,191.58,191.57,0.2]
[1753708779868,52.80534179,191.58,191.57,0.2]
[1753708780072,56.25526221,191.58,191.57,0.2]
[1753708780263,56.25526221,191.58,191.53,0.06]
[1753708780264,74.68424618,191.58,191.53,0.06]
[1753708780459,10.08746583,191.54,191.53,0.06]
[1753708780794,42.78468397,191.5,191.49,0.03802816]
[1753708780969,96.21840505,191.5,191.49,0.03802816]
[1753708781164,100.79370844,191.5,191.49,0.03802816]
[1753708782179,104.61966217,191.5,191.49,0.03802816]
[1753708782367,108.5012158,191.5,191.49,0.03802816]
[1753708782870,116.4769158,191.5,191.49,0.03802816]
[1753708783067,120.29964481,191.5,191.49,0.03802816]
[1753708783514,0.28432314,191.49,191.43,0.2]
[1753708783663,0.28432314,191.49,191.2,10.0]
[1753708783664,10.08746583,191.34,191.31,0.26]
[1753708783863,47.96746583,191.33,191.29,5.22754479]
[1753708784064,26.0,191.37,191.31,10.08746583]
[1753708784394,15.24137919,191.39,191.35,10.08746583]
[1753708784566,37.9,191.38,191.36,10.08746583]
[1753708784889,37.9,191.38,191.37,0.26]
[1753708785461,37.9,191.38,191.33,0.26]
[1753708785669,10.08746583,191.37,191.33,0.26]
[1753708785902,10.08746583,191.35,191.3,0.26]
[1753708786074,10.08746583,191.33,191.28,0.26]
[1753708786278,10.08746583,191.33,191.26,7.6407]
[1753708786279,10.08746583,191.31,191.26,17.98816583]
[1753708786583,16.78468397,191.36,191.22,0.26]
[1753708786584,38.63,191.3,191.22,0.26]
[1753708786802,48.02746583,191.29,191.24,10.08746583]
[1753708786996,22.01162622,191.32,191.24,10.08746583]
[1753708787200,48.02746583,191.31,191.25,10.34746583]
[1753708787397,37.96,191.3,191.26,10.34746583]
[1753708787568,37.96,191.3,191.27,0.26]
[1753708787775,37.96,191.29,191.28,10.08746583]
[1753708787970,37.96,191.29,191.28,10.34746583]
[1753708788202,15.19330981,191.36,191.28,10.34746583]
[1753708788370,10.08746583,191.33,191.28,6.562]
[1753708788570,10.08746583,191.3,191.26,0.26]
[1753708788783,38.0,191.29,191.25,0.26]
[1753708788973,38.0,191.29,191.26,0.26]
[1753708789182,38.0,191.29,191.27,10.34746583]
[1753708789374,38.0,191.29,191.28,0.26]
[1753708789778,38.0,191.29,191.26,10.08746583]
[1753708789977,38.0,191.29,191.27,0.26]
[1753708790872,38.0,191.29,191.28,5.4879381]
[1753708791301,10.08746583,191.33,191.28,5.4879381]
[1753708791502,41.87497783,191.32,191.28,5.4879381]
[1753708791682,14.50234843,191.4,191.31,10.08746583]
[1753708791889,41.87457972,191.39,191.34,10.08746583]
[1753708792192,14.63204555,191.38,191.33,10.08746583]
[1753708792382,10.08746583,191.36,191.3,11.62246583]
[1753708792582,10.08746583,191.34,191.29,10.08746583]
[1753708792778,10.08746583,191.33,191.28,5.2279381]
[1753708792974,38.04,191.32,191.28,5.2279381]
[1753708793305,38.04,191.32,191.31,10.08746583]
[1753708793495,38.04,191.32,191.31,10.34746583]
[1753708794004,38.06,191.34,191.31,10.34746583]
[1753708794184,38.06,191.34,191.33,10.08746583]
[1753708794391,14.50234843,191.4,191.33,10.34746583]
[1753708794590,14.50234843,191.4,191.38,10.08746583]
[1753708794591,41.89103972,191.39,191.38,10.08746583]
[1753708794802,41.89103972,191.39,191.36,10.08746583]
[1753708795005,4.54103972,191.38,191.33,15.31399794]
[1753708795208,3.85103972,191.37,191.35,10.08746583]
[1753708795392,41.91103972,191.36,191.33,5.22653211]
[1753708795706,3.85103972,191.35,191.33,5.22653211]
[1753708795873,3.85103972,191.34,191.33,5.48653211]
[1753708796077,3.85103972,191.34,191.33,5.22653211]
[1753708796277,3.85103972,191.35,191.33,5.22653211]
[1753708796489,3.85103972,191.34,191.33,5.22653211]
[1753708796892,3.85103972,191.35,191.33,5.22653211]
[1753708797190,3.85103972,191.35,191.3,0.26]
[1753708797191,14.50234843,191.4,191.34,10.08746583]
[1753708797396,14.50234843,191.4,191.39,10.08746583]
[1753708797981,18.2877297,191.4,191.39,10.08746583]
[1753708798275,18.2877297,191.4,191.34,1.5178]
[1753708798479,14.50234843,191.4,191.37,10.08746583]
[1753708798703,14.50234843,191.4,191.34,1.5178]
[1753708799001,14.50234843,191.4,191.38,10.08746583]
[1753708799210,14.50234843,191.4,191.39,10.08746583]
[1753708800180,14.50234843,191.4,191.38,10.08746583]
[1753708800381,0.69,191.39,191.34,1.5178]
[1753708800588,14.50234843,191.4,191.34,1.5178]
[1753708800589,38.73,191.38,191.34,10.08746583]
[1753708800886,0.69,191.37,191.33,10.08746583]
[1753708801107,38.04,191.38,191.34,10.08746583]
[1753708801317,0.69,191.37,191.33,10.08746583]
[1753708801532,27.5621498,191.36,191.27,6.3441]
[1753708801840,48.81746583,191.35,191.3,10.08746583]
[1753708802114,0.69,191.34,191.28,5.2279381]
[1753708802324,38.04,191.33,191.28,5.2279381]
[1753708802530,38.04,191.33,191.32,10.08746583]
[1753708802688,38.06,191.33,191.32,10.08746583]
[1753708803123,38.06,191.33,191.32,15.3143109]
[1753708804017,38.08,191.36,191.32,15.5743109]
[1753708804316,14.50234843,191.4,191.35,10.08746583]
[1753708804317,38.08,191.37,191.35,10.08746583]
[1753708804495,38.08,191.37,191.36,10.08746583]
[1753708805229,14.50234843,191.4,191.36,10.08746583]
[1753708805230,14.50234843,191.4,191.36,15.57321833]
[1753708805395,52.60234843,191.4,191.39,10.08746583]
[1753708806384,52.60234843,191.4,191.36,18.55013377]
[1753708806385,52.60234843,191.4,191.37,10.08746583]
[1753708806585,53.29234843,191.4,191.37,10.08746583]
[1753708806815,52.60234843,191.4,191.37,10.08746583]
[1753708806993,0.69,191.39,191.37,10.08746583]
[1753708807189,52.60234843,191.4,191.38,10.08746583]
[1753708807397,52.60234843,191.4,191.39,10.08746583]
[1753708807629,52.60234843,191.4,191.34,18.55204556]
[1753708807933,52.60234843,191.4,191.39,10.08746583]
[1753708808437,52.60234843,191.4,191.38,10.08746583]
[1753708808798,52.60234843,191.4,191.34,18.29204556]
[1753708808799,0.69,191.39,191.36,10.08746583]
[1753708809019,62.68981426,191.4,191.35,10.08746583]
[1753708809220,0.69,191.38,191.35,10.08746583]
[1753708809423,38.81,191.37,191.33,10.14746583]
[1753708809622,10.08746583,191.34,191.33,0.06]
[1753708809797,48.20746583,191.34,191.33,0.06]
[1753708810001,69.54315156,191.34,191.33,0.06]
[1753708810426,42.67100176,191.34,191.33,0.06]
[1753708810727,69.54315156,191.34,191.33,0.06]
[1753708811035,73.33671437,191.34,191.33,0.06]
[1753708811216,78.56418032,191.34,191.33,0.06]
[1753708811539,78.56600694,191.34,191.33,0.06]
[1753708813300,78.85033008,191.34,191.33,0.06]
[1753708813515,68.76286425,191.34,191.33,0.06]
[1753708813727,78.85033008,191.34,191.33,0.06]
[1753708814028,75.06016021,191.34,191.33,0.06]
[1753708814235,78.8596911,191.34,191.33,0.06]
[1753708814532,68.48790213,191.34,191.33,0.06]
[1753708814712,78.57536796,191.34,191.33,0.06]
[1753708815231,78.8596911,191.34,191.33,0.06]
[1753708817737,82.28395269,191.34,191.33,0.06]
[1753708818040,85.01242499,191.34,191.33,0.06]
[1753708818240,17.06900711,191.33,191.22,26.0]
[1753708818404,5.2276648,191.29,191.22,31.22945074]
[1753708818612,41.85953089,191.28,191.25,10.08746583]
[1753708818910,0.69,191.27,191.24,10.08746583]
[1753708819114,38.06,191.26,191.24,10.08746583]
[1753708819308,38.06,191.26,191.22,26.0]
[1753708819512,38.06,191.26,191.24,10.08746583]
[1753708820119,38.06,191.26,191.25,10.08746583]
[1753708820319,38.75,191.26,191.22,26.0]
[1753708820547,38.06,191.26,191.25,10.08746583]
[1753708820839,38.06,191.26,191.25,10.34746583]
[1753708821159,0.69,191.35,191.25,10.34746583]
[1753708821330,7.69885306,191.34,191.29,10.08746583]
[1753708821512,38.06,191.33,191.28,6.4375]
[1753708821856,0.69,191.32,191.27,10.08746583]
[1753708822009,64.9321498,191.31,191.25,10.08746583]
[1753708822206,3.88192475,191.3,191.25,10.08746583]
[1753708822420,38.77,191.29,191.25,10.08746583]
[1753708822631,38.77,191.29,191.26,10.08746583]
[1753708823114,4.57801017,191.28,191.26,10.08746583]
[1753708823413,38.06,191.27,191.25,5.22873726]
[1753708823616,32.78933636,191.31,191.26,10.08746583]
[1753708823617,27.5621498,191.31,191.26,10.08746583]
[1753708823881,49.20907908,191.3,191.27,10.08746583]
[1753708824162,16.78468397,191.33,191.29,10.08746583]
[1753708824320,49.90526311,191.32,191.28,10.08746583]
[1753708824514,11.84526311,191.31,191.27,10.08746583]
[1753708824717,4.58106979,191.3,191.26,10.08746583]
[1753708825016,46.46483074,191.29,191.25,10.08746583]
[1753708825218,4.58106979,191.28,191.26,10.08746583]
[1753708825450,3.89106979,191.27,191.26,10.08746583]
[1753708825922,3.89106979,191.27,191.25,10.08746583]
[1753708826126,41.95106979,191.26,191.25,10.08746583]
[1753708827459,41.95106979,191.26,191.25,36.34746583]
[1753708827460,3.89106979,191.26,191.25,36.34746583]
[1753708827677,0.69,191.36,191.25,36.34746583]
[1753708827848,3.45318962,191.38,191.35,10.08746583]
[1753708828043,3.83612672,191.37,191.36,10.08746583]
[1753708828347,7.97931634,191.37,191.35,10.08746583]
[1753708828541,3.83612672,191.36,191.35,10.08746583]
[1753708829070,4.52612672,191.36,191.31,10.08746583]
[1753708829237,42.58612672,191.35,191.29,5.2276648]
[1753708829440,7.97931634,191.34,191.3,10.08746583]
[1753708829657,4.52612672,191.33,191.3,10.08746583]
[1753708829850,4.52612672,191.33,191.3,5.22729286]
[1753708829851,38.06,191.32,191.3,5.22729286]
[1753708830057,38.06,191.32,191.31,10.08746583]
[1753708830260,38.06,191.34,191.31,10.08746583]
[1753708830469,3.83866987,191.33,191.31,0.26]
[1753708830771,38.06,191.37,191.32,26.26]
[1753708830952,3.8394243,191.36,191.32,26.0]
[1753708831157,38.06,191.37,191.33,0.26]
[1753708831699,38.06,191.37,191.36,10.08746583]
[1753708831853,41.89996478,191.37,191.36,15.31321833]
[1753708833142,38.04,191.39,191.36,15.31321833]
[1753708833375,38.04,191.39,191.37,10.34746583]
[1753708833553,38.04,191.39,191.37,10.08746583]
[1753708833879,3.87182439,191.38,191.37,15.31294526]
[1753708834603,0.03,191.38,191.37,10.08746583]
[1753708834801,0.03,191.38,191.31,13.06748206]
[1753708834802,4.53214207,191.38,191.36,10.08746583]
[1753708835001,0.69,191.38,191.36,10.08746583]
[1753708835175,0.66,191.37,191.36,10.08746583]
[1753708835371,0.66,191.37,191.3,26.0]
[1753708835572,38.02,191.36,191.32,10.08746583]
[1753708835794,0.66,191.35,191.31,10.08746583]
[1753708835976,9.34323921,191.35,191.3,10.08746583]
[1753708836178,0.66,191.34,191.3,10.08746583]
[1753708836400,38.68,191.33,191.29,5.22762503]
[1753708836703,38.02,191.33,191.32,10.08746583]
[1753708837603,0.03,191.38,191.32,10.08746583]
[1753708837604,0.03,191.38,191.32,10.34746583]
[1753708837903,0.03,191.38,191.37,15.31294526]
[1753708838103,0.03,191.4,191.39,20.17493166]
[1753708838685,0.03,191.4,191.39,20.43493166]
[1753708839287,38.04,191.45,191.42,26.0]
[1753708839482,0.03,191.46,191.42,36.34746583]
[1753708840208,0.03,191.46,191.42,41.31158034]
[1753708840380,0.69,191.46,191.42,41.31158034]
[1753708840580,0.69,191.46,191.42,15.31158034]
[1753708840776,0.69,191.46,191.42,10.08746583]
[1753708840981,13.79825475,191.43,191.42,10.08746583]
[1753708841206,13.79825475,191.43,191.41,10.08746583]
[1753708841424,13.79825475,191.43,191.42,10.08746583]
[1753708841627,17.03440133,191.43,191.42,10.08746583]
[1753708841827,13.13825475,191.43,191.42,10.08746583]
[1753708842034,13.13825475,191.43,191.42,41.31158034]
[1753708842243,13.13825475,191.43,191.42,41.57158034]
[1753708842404,0.03,191.43,191.42,41.57158034]
[1753708843113,0.03,191.43,191.42,41.31158034]
[1753708843925,0.03,191.43,191.42,41.57158034]
[1753708844327,0.03,191.46,191.42,54.63186662]
[1753708844528,0.03,191.46,191.45,10.08746583]
[1753708846033,0.03,191.46,191.45,15.31076172]
[1753708846402,0.03,191.46,191.45,41.57076172]
[1753708846820,0.03,191.46,191.45,41.31076172]
[1753708850634,0.69,191.46,191.45,41.31076172]
[1753708850932,0.69,191.46,191.45,36.08746583]
[1753708851138,0.69,191.46,191.45,10.08746583]
[1753708851827,0.69,191.46,191.44,10.08746583]
[1753708852151,0.03,191.46,191.45,15.31076172]
[1753708852356,0.03,191.46,191.45,10.08746583]
[1753708852723,0.69,191.46,191.45,10.08746583]
[1753708852923,0.69,191.46,191.4,5.22466039]
[1753708853146,0.69,191.46,191.43,10.08746583]
[1753708853350,37.92,191.45,191.43,10.08746583]
[1753708853556,0.66,191.44,191.42,10.08746583]
[1753708853756,37.92,191.45,191.42,10.08746583]
[1753708853937,0.66,191.43,191.42,10.08746583]
[1753708854536,0.66,191.43,191.39,0.06]
[1753708854537,0.66,191.43,191.41,10.08746583]
[1753708854745,0.66,191.42,191.39,0.06]
[1753708855074,5.2235928,191.44,191.41,10.08746583]
[1753708855563,0.66,191.43,191.4,10.08746583]
[1753708855774,0.66,191.43,191.39,0.06]
[1753708855978,0.66,191.43,191.4,10.08746583]
[1753708856250,37.9,191.43,191.42,10.08746583]
[1753708857060,38.56,191.43,191.42,10.08746583]
[1753708857230,38.56,191.43,191.39,5.28491629]
[1753708857231,38.56,191.43,191.41,10.08746583]
[1753708857555,0.66,191.42,191.4,10.08746583]
[1753708857761,5.223957,191.43,191.39,0.06]
[1753708857955,2.2534,191.45,191.42,10.08746583]
[1753708858254,38.58,191.44,191.43,10.08746583]
[1753708859035,38.58,191.44,191.42,10.08746583]
[1753708859257,0.66,191.43,191.41,10.08746583]
[1753708859435,43.14357379,191.44,191.41,10.08746583]
[1753708859635,0.66,191.42,191.41,10.08746583]
[1753708860835,0.66,191.42,191.4,10.08746583]
[1753708861034,0.68,191.41,191.4,10.08746583]
[1753708861564,0.68,191.41,191.39,10.14746583]
[1753708861729,38.6,191.4,191.39,0.06]
[1753708861932,38.6,191.4,191.39,10.14746583]
[1753708861933,37.92,191.4,191.39,10.14746583]
[1753708862561,38.6,191.4,191.39,10.14746583]
[1753708863179,53.91212622,191.4,191.39,0.06]
[1753708863390,70.69681019,191.4,191.39,0.06]
[1753708863554,70.69681019,191.4,191.29,99.74746583]
[1753708863555,16.78468397,191.39,191.29,5.2276648]
[1753708863749,10.08746583,191.38,191.33,10.08746583]
[1753708864121,26.8721498,191.36,191.31,10.08746583]
[1753708864298,37.92,191.35,191.31,10.08746583]
[1753708864616,0.68,191.34,191.3,10.08746583]
[1753708864819,0.68,191.33,191.31,10.08746583]
[1753708865419,0.68,191.33,191.24,39.07223851]
[1753708865420,0.68,191.32,191.3,10.08746583]
[1753708865600,38.6,191.31,191.29,10.08746583]
[1753708865778,0.68,191.3,191.29,10.08746583]
[1753708866286,37.92,191.31,191.29,10.08746583]
[1753708866684,38.6,191.31,191.29,10.08746583]
[1753708867023,37.92,191.31,191.28,5.22776453]
[1753708867316,37.92,191.31,191.3,10.08746583]
[1753708867691,16.78468397,191.39,191.3,10.08746583]
[1753708867910,1.6474,191.4,191.38,10.08746583]
[1753708868198,26.8721498,191.44,191.38,10.08746583]
[1753708868399,16.78468397,191.41,191.3,5.22739153]
[1753708868601,10.08746583,191.39,191.34,10.08746583]
[1753708868790,16.78468397,191.37,191.3,5.22739153]
[1753708868990,10.76746583,191.36,191.31,10.08746583]
[1753708869191,16.78468397,191.35,191.29,5.22764443]
[1753708869502,16.78468397,191.33,191.26,5.22848478]
[1753708869715,0.68,191.32,191.28,10.08746583]
[1753708869900,0.68,191.31,191.28,10.08746583]
[1753708870097,38.64,191.3,191.28,10.08746583]
[1753708870296,0.68,191.29,191.28,10.08746583]
[1753708870495,0.68,191.29,191.27,10.08746583]
[1753708870703,0.68,191.28,191.25,0.06]
[1753708870909,0.68,191.27,191.25,10.14746583]
[1753708871108,37.96,191.26,191.25,0.06]
[1753708871418,38.64,191.26,191.25,0.06]
[1753708872901,37.96,191.26,191.25,0.06]
[1753708873532,38.64,191.26,191.25,0.06]
[1753708873712,37.96,191.26,191.25,0.06]
[1753708874103,37.96,191.26,191.25,10.14746583]
[1753708874302,37.92,191.26,191.25,10.14746583]
[1753708874522,0.68,191.31,191.25,5.28875816]
[1753708874732,37.92,191.3,191.25,5.60875816]
[1753708874913,37.92,191.3,191.29,10.08746583]
[1753708875225,16.78468397,191.29,191.25,0.06]
[1753708875414,17.46468397,191.29,191.25,0.06]
[1753708875621,16.78468397,191.27,191.25,0.06]
[1753708875832,37.96,191.26,191.25,0.06]
[1753708876003,38.64,191.26,191.25,0.06]
[1753708876509,43.86848478,191.26,191.25,0.06]
[1753708876810,0.68,191.3,191.25,10.14746583]
[1753708877016,38.64,191.29,191.26,10.08746583]
[1753708877313,0.68,191.28,191.25,10.14746583]
[1753708877515,0.68,191.27,191.25,10.14746583]
[1753708878228,0.68,191.26,191.25,0.06]
[1753708878653,38.0,191.26,191.25,10.14746583]
[1753708878799,38.68,191.26,191.25,0.06]
[1753708879419,65.5521498,191.26,191.25,0.06]
[1753708879638,16.78468397,191.25,191.22,0.2]
[1753708879824,16.78468397,191.23,191.22,0.2]
[1753708880125,38.0,191.23,191.22,0.2]
[1753708880833,38.68,191.23,191.22,0.2]
[1753708881225,60.69398899,191.23,191.22,0.2]
[1753708881631,55.46468397,191.23,191.22,0.2]
[1753708881812,60.69398899,191.23,191.22,0.2]
[1753708882238,17.46468397,191.23,191.22,0.2]
[1753708882534,60.69398899,191.23,191.22,0.2]
[1753708883340,60.69398899,191.23,191.14,5.2317297]
[1753708883341,26.0,191.19,191.11,5.23255336]
[1753708883640,38.68,191.18,191.08,0.58]
[1753708883854,38.68,191.18,191.12,10.08746583]
[1753708884034,0.68,191.23,191.17,10.08746583]
[1753708884338,38.0,191.22,191.18,10.08746583]
[1753708884508,38.0,191.22,191.2,10.08746583]
[1753708885005,16.78468397,191.25,191.2,10.08746583]
[1753708885006,2.3003,191.26,191.21,10.08746583]
[1753708885205,38.7,191.25,191.21,10.08746583]
[1753708885432,27.5521498,191.24,191.18,10.08746583]
[1753708885605,10.08746583,191.22,191.17,10.08746583]
[1753708885811,48.80746583,191.21,191.15,10.08746583]
[1753708886020,10.08746583,191.2,191.15,10.08746583]
[1753708886221,10.76746583,191.2,191.15,10.08746583]
[1753708886416,10.76746583,191.2,191.12,5.23231477]
[1753708886807,10.76746583,191.2,191.15,10.08746583]
[1753708887234,10.76746583,191.19,191.14,10.08746583]
[1753708887424,38.04,191.18,191.15,10.08746583]
[1753708888217,38.72,191.18,191.15,10.08746583]
[1753708888436,38.04,191.18,191.15,10.08746583]
[1753708888739,38.04,191.18,191.12,5.23231477]
[1753708889048,38.04,191.18,191.14,10.08746583]
[1753708889212,0.68,191.17,191.13,10.08746583]
[1753708889412,38.04,191.18,191.14,10.08746583]
[1753708889636,10.08746583,191.16,191.11,10.08746583]
[1753708889815,38.68,191.15,191.11,10.08746583]
[1753708890016,38.0,191.15,191.11,10.08746583]
[1753708890231,0.68,191.14,191.1,15.3203282]
[1753708891331,16.78468397,191.21,191.11,10.08746583]
[1753708891645,38.02,191.2,191.17,10.08746583]
[1753708892047,38.02,191.2,191.16,10.08746583]
[1753708892352,38.02,191.2,191.18,10.08746583]
[1753708892644,38.02,191.2,191.17,10.08746583]
[1753708892852,0.68,191.19,191.13,5.8718008]
[1753708893056,0.68,191.19,191.14,10.08746583]
[1753708893226,53.33771341,191.2,191.14,10.08746583]
[1753708893558,10.76746583,191.19,191.13,15.31944169]
[1753708893730,10.76746583,191.19,191.13,10.08746583]
[1753708894548,0.68,191.19,191.15,10.08746583]
[1753708894739,38.02,191.2,191.16,10.08746583]
[1753708894933,0.68,191.22,191.18,10.08746583]
[1753708895140,38.06,191.21,191.18,0.64]
[1753708895350,38.06,191.2,191.18,10.08746583]
[1753708896168,38.06,191.2,191.16,0.64]
[1753708896375,38.06,191.2,191.15,5.23124242]
[1753708896533,0.68,191.23,191.19,10.08746583]
[1753708896729,16.81468397,191.25,191.15,5.23124242]
[1753708896730,0.03,191.25,191.22,10.08746583]
[1753708896930,0.03,191.25,191.24,10.08746583]
[1753708897472,0.71,191.25,191.22,10.08746583]
[1753708898051,0.03,191.25,191.22,10.08746583]
[1753708898253,0.68,191.24,191.19,5.23036995]
[1753708898564,38.82,191.23,191.2,10.08746583]
[1753708898748,0.68,191.22,191.18,10.08746583]
[1753708898931,53.45698601,191.23,191.13,6.7539]
[1753708899133,0.68,191.21,191.16,10.08746583]
[1753708899436,0.68,191.2,191.16,10.08746583]
[1753708899753,38.14,191.19,191.16,10.08746583]
[1753708899959,38.14,191.19,191.18,10.08746583]
[1753708900538,38.14,191.19,191.17,10.08746583]
[1753708901438,38.14,191.19,191.18,10.08746583]
[1753708901641,38.14,191.19,191.18,10.72746583]
[1753708901833,5.93879123,191.25,191.18,10.72746583]
[1753708901834,0.03,191.25,191.18,10.72746583]
[1753708902065,0.03,191.25,191.24,10.08746583]
[1753708902248,44.05875816,191.25,191.21,10.08746583]
[1753708902453,18.07324178,191.24,191.18,10.08746583]
[1753708902635,14.64428477,191.23,191.17,10.08746583]
[1753708902840,5.22985199,191.21,191.17,10.08746583]
[1753708903066,38.14,191.2,191.16,10.08746583]
[1753708903270,38.14,191.2,191.13,26.64]
[1753708903571,38.14,191.2,191.16,10.08746583]
[1753708903735,0.68,191.19,191.13,5.87197917]
[1753708904066,4.56107108,191.19,191.15,10.08746583]
[1753708904367,3.88107108,191.18,191.15,10.08746583]
[1753708904666,38.14,191.2,191.15,10.08746583]
[1753708904863,3.88292725,191.19,191.15,10.08746583]
[1753708905168,4.56292725,191.19,191.15,10.08746583]
[1753708905370,5.91053917,191.19,191.13,5.23197172]
[1753708905680,14.6524719,191.18,191.09,0.28432314]
[1753708905853,3.88500607,191.17,191.13,10.08746583]
[1753708906051,38.08,191.16,191.14,10.08746583]
[1753708906364,38.08,191.16,191.09,19.24029989]
[1753708906551,38.08,191.16,191.14,10.08746583]
[1753708906879,38.08,191.16,191.15,10.08746583]
[1753708907374,38.08,191.16,191.14,10.08746583]
[1753708907777,38.08,191.16,191.12,5.23225653]
[1753708908077,14.65684723,191.15,191.09,10.08746583]
[1753708908285,3.8893814,191.14,191.1,10.08746583]
[1753708908453,3.8893814,191.14,191.11,10.08746583]
[1753708908650,1.6008,191.2,191.07,5.87362257]
[1753708908651,3.8893814,191.13,191.12,10.08746583]
[1753708908972,38.1,191.13,191.12,10.08746583]
[1753708909151,41.99278931,191.13,191.11,10.08746583]
[1753708909358,38.1,191.13,191.1,10.08746583]
[1753708909562,3.89321862,191.12,191.09,10.08746583]
[1753708909763,3.89321862,191.12,191.06,0.64]
[1753708909764,4.57321862,191.12,191.06,0.64]
[1753708909969,0.68,191.12,191.06,0.64]
[1753708910170,0.68,191.12,191.03,5.23453244]
[1753708910350,0.68,191.12,191.05,10.08746583]
[1753708910351,13.98129393,191.11,191.05,10.08746583]
[1753708910567,3.8938281,191.1,191.03,5.23453244]
[1753708910887,38.12,191.09,191.05,10.08746583]
[1753708911191,38.12,191.09,191.06,10.08746583]
[1753708911491,17.06900711,191.16,191.08,10.08746583]
[1753708911492,5.23199976,191.14,191.08,10.08746583]